bitfinex/quotes_ETHUSD_20260228
["timestamp","ask_amount","ask_price","bid_price","bid_amount"]
[1772309996610,1.27785728,1956.4,1955.6,0.49559331]
[1772309996796,1.27785728,1956.4,1955.7,0.49559331]
[1772309996993,1.77096878,1956.4,1955.7,0.49559331]
[1772309997398,1.27785728,1956.4,1955.7,0.49559331]
[1772309997695,1.77096878,1956.4,1955.7,0.49559331]
[1772309998083,1.77080125,1956.7,1955.8,0.49559331]
[1772309998289,0.4931115,1956.6,1955.8,0.49559331]
[1772309998996,1.27779197,1956.5,1955.8,0.49559331]
[1772309999191,1.77090347,1956.5,1955.5,3.35899699]
[1772309999396,0.4931115,1956.4,1955.5,3.35899699]
[1772309999616,0.4931115,1956.4,1955.6,0.49559331]
[1772309999827,0.002,1956.6,1955.8,0.49559331]
[1772310000922,0.4931115,1956.5,1955.5,1.585]
[1772310001214,1.77096878,1956.4,1955.5,3.3590328]
[1772310001514,8.77884377,1956.6,1955.6,0.49559331]
[1772310001515,0.002,1956.6,1955.6,0.49559331]
[1772310001685,0.002,1956.6,1955.8,0.49559331]
[1772310001886,0.002,1956.7,1956.2,0.49559331]
[1772310002081,0.002,1956.7,1956.3,0.49559331]
[1772310003084,0.002,1956.7,1956.4,1.27785728]
[1772310003715,0.002,1956.7,1956.4,1.77345059]
[1772310004022,1.77023027,1957.6,1956.8,0.49559331]
[1772310004189,1.27711877,1957.6,1956.9,0.49559331]
[1772310004520,1.27902494,1957.7,1956.9,0.49559331]
[1772310004704,0.002,1957.7,1956.9,0.49559331]
[1772310005110,0.002,1957.7,1957.0,1.77305881]
[1772310005320,0.002,1958.0,1957.4,3.66541462]
[1772310005651,0.002,1958.0,1957.4,5.24641462]
[1772310005815,0.002,1958.0,1957.4,5.74200793]
[1772310006017,0.4931115,1958.7,1957.7,4.16100793]
[1772310006317,0.4931115,1958.7,1957.4,2.07659331]
[1772310006816,0.4931115,1958.7,1957.6,0.49559331]
[1772310007226,0.4931115,1958.7,1957.5,3.66541462]
[1772310007227,0.4931115,1958.5,1957.5,1.27709375]
[1772310007524,0.4931115,1958.5,1957.6,0.49559331]
[1772310007887,0.4931115,1958.8,1958.0,3.66541462]
[1772310008089,0.4931115,1958.8,1958.1,1.36]
[1772310008622,0.34561179,1959.0,1958.1,1.85559331]
[1772310008793,0.4931115,1958.9,1958.1,1.36]
[1772310009321,0.4931115,1958.7,1958.1,1.36]
[1772310009799,0.4931115,1958.7,1958.1,0.48688126]
[1772310011217,0.4951115,1959.0,1958.1,1.76361549]
[1772310011420,0.4951115,1959.0,1958.1,0.48688126]
[1772310011624,0.4951115,1959.0,1958.1,1.76361965]
[1772310011798,0.4951115,1959.0,1958.1,1.76362251]
[1772310012002,0.002,1958.6,1958.1,1.76362251]
[1772310012199,0.4931115,1958.5,1957.4,0.49559331]
[1772310012703,0.002,1958.6,1957.8,0.49559331]
[1772310013019,0.002,1958.6,1957.9,0.49559331]
[1772310013438,0.002,1958.6,1958.0,1.77240638]
[1772310013591,5.10695776,1958.9,1958.1,0.49559331]
[1772310013592,0.002,1958.9,1958.1,0.49559331]
[1772310013791,1.27823919,1958.9,1958.1,0.47001786]
[1772310014005,0.002,1958.9,1958.1,0.47001786]
[1772310014208,1.27823554,1958.9,1958.1,0.47001786]
[1772310014406,0.002,1958.9,1958.1,0.47001786]
[1772310014617,1.27823312,1958.9,1958.1,0.47001786]
[1772310015624,0.002,1958.9,1958.2,1.27668266]
[1772310016221,0.002,1958.9,1958.2,1.77227597]
[1772310016410,0.002,1958.9,1958.2,0.49559331]
[1772310016617,0.002,1959.1,1958.5,4.16473837]
[1772310016802,0.002,1959.1,1958.6,1.575]
[1772310017397,0.45501836,1960.4,1959.2,0.49932375]
[1772310017599,1.73032049,1960.4,1959.3,7.01570427]
[1772310017824,0.45501836,1960.4,1959.4,0.49932375]
[1772310018024,1.73028097,1960.4,1959.4,0.49932375]
[1772310018245,0.45501836,1960.3,1959.3,2.8509659]
[1772310018400,0.45501836,1960.6,1959.6,3.66541462]
[1772310018734,1.27710379,1960.7,1959.7,0.49932375]
[1772310018735,1.27707731,1960.7,1959.7,0.49932375]
[1772310019024,1.73209567,1960.7,1959.8,1.575]
[1772310019226,0.45501836,1960.6,1959.8,1.575]
[1772310019616,0.45701836,1960.7,1959.8,1.575]
[1772310020133,0.45701836,1960.7,1959.6,1.322]
[1772310020308,0.45701836,1960.7,1959.6,1.82132375]
[1772310020509,0.45701836,1960.7,1959.9,0.49932375]
[1772310020510,0.002,1960.7,1959.9,0.49932375]
[1772310020711,0.002,1960.7,1960.1,4.16473837]
[1772310020914,0.45501836,1961.7,1960.5,0.49932375]
[1772310021230,1.27427493,1961.9,1959.6,10.99624386]
[1772310021231,0.45501836,1961.2,1959.9,1.26]
[1772310021411,0.45501836,1961.0,1959.9,1.26]
[1772310021600,0.45501836,1960.8,1959.9,1.26]
[1772310021801,0.45501836,1961.4,1960.2,4.16473837]
[1772310022030,0.45501836,1961.4,1960.3,0.49932375]
[1772310022214,0.45501836,1961.3,1960.0,0.49932375]
[1772310022401,0.45501836,1961.3,1959.9,2.53553865]
[1772310022800,0.45501836,1961.3,1960.1,4.16473837]
[1772310023622,1.27472975,1961.2,1960.2,1.77470381]
[1772310023934,1.72972715,1961.3,1960.3,0.49932375]
[1772310024123,1.27453479,1961.5,1960.5,0.49932375]
[1772310024329,1.27450149,1961.6,1960.7,4.16473837]
[1772310024633,0.34503329,1962.1,1961.1,0.49932375]
[1772310024845,1.72884823,1962.6,1961.5,4.16473837]
[1772310025005,0.45501836,1963.0,1961.7,0.49932375]
[1772310025201,2.6962128,1963.5,1962.3,0.49932375]
[1772310025406,2.6962128,1963.5,1961.4,3.73095062]
[1772310025407,2.6546156,1965.9,1962.7,0.02799764]
[1772310025673,0.5,1962.2,1960.8,2.50397328]
[1772310025804,0.49932375,1962.3,1961.1,4.76916916]
[1772310026005,0.827,1962.3,1961.2,0.51552306]
[1772310026242,1.11516668,1962.5,1961.1,4.76916916]
[1772310026557,0.065536,1962.1,1960.3,0.54052306]
[1772310026736,0.827,1962.3,1960.5,0.54052306]
[1772310026904,1.11516668,1962.5,1960.5,0.54052306]
[1772310026905,4.49241462,1962.2,1960.5,0.54052306]
[1772310027109,4.49241462,1962.2,1960.1,2.73551579]
[1772310027110,1.11516668,1962.5,1961.1,0.54052306]
[1772310027335,3.66541462,1962.4,1961.1,0.54052306]
[1772310027511,1.11516668,1962.5,1960.1,2.73551579]
[1772310027512,30.0,1962.2,1960.3,0.54052306]
[1772310027712,12.698903,1961.6,1959.9,0.54052306]
[1772310027917,0.065536,1961.3,1959.5,0.54052306]
[1772310028211,0.45501836,1960.8,1959.2,0.49932375]
[1772310028412,0.45501836,1961.6,1960.2,3.66541462]
[1772310028614,0.45501836,1961.6,1960.1,0.49932375]
[1772310029136,0.45501836,1961.6,1960.3,4.16473837]
[1772310029304,2.6962128,1961.7,1960.4,0.49932375]
[1772310029509,6.36162742,1961.7,1960.4,0.49932375]
[1772310029836,1.27446982,1961.6,1960.4,0.49932375]
[1772310030010,1.27446982,1961.6,1960.7,0.49932375]
[1772310030737,1.27414504,1962.1,1960.9,3.66541462]
[1772310030939,1.27414504,1962.1,1961.0,0.49932375]
[1772310031741,1.27414504,1962.1,1960.9,3.66541462]
[1772310031742,2.38911694,1962.5,1961.3,0.49932375]
[1772310031970,5.09580375,1962.4,1961.3,0.49932375]
[1772310032456,4.12043298,1962.0,1960.5,0.49932375]
[1772310032655,3.66541462,1961.7,1960.5,0.49932375]
[1772310032855,4.67223116,1961.9,1960.5,0.49932375]
[1772310032856,2.6962128,1961.9,1960.5,0.49932375]
[1772310033043,0.45501836,1961.8,1960.5,0.49932375]
[1772310033244,0.45501836,1961.8,1960.1,4.0109248]
[1772310033245,0.45501836,1961.7,1960.1,0.49932375]
[1772310033445,2.6962128,1961.9,1959.1,0.49932375]
[1772310033446,3.66541462,1960.7,1959.1,0.49932375]
[1772310033655,4.12043298,1960.7,1959.1,0.49932375]
[1772310033825,1.27511986,1960.6,1959.3,0.49932375]
[1772310034030,1.27511986,1960.6,1959.5,0.49932375]
[1772310034456,1.27511986,1960.6,1959.7,3.66541462]
[1772310034656,1.27511986,1960.6,1959.1,5.1043654]
[1772310034657,1.27511986,1960.6,1959.1,0.49932375]
[1772310035043,1.73013822,1960.6,1959.1,0.49932375]
[1772310035560,1.27511986,1960.6,1959.2,0.49932375]
[1772310035934,5.10047944,1960.8,1959.4,0.49932375]
[1772310036358,5.10047944,1960.9,1959.6,0.49932375]
[1772310036553,5.10047944,1960.9,1959.7,1.99132375]
[1772310036861,0.45501836,1960.8,1959.3,0.49932375]
[1772310037732,5.10047944,1960.9,1959.4,0.49932375]
[1772310037959,5.09953754,1961.1,1959.6,0.49932375]
[1772310038278,5.09917903,1961.4,1959.5,1.27583567]
[1772310038279,1.27605878,1962.3,1960.9,4.14693436]
[1772310038434,1.27605878,1962.3,1961.1,0.49932375]
[1772310038969,0.002,1962.6,1961.3,4.14693436]
[1772310039264,1.72793078,1964.0,1962.2,3.64761061]
[1772310039590,1.72793078,1964.0,1962.4,3.64761061]
[1772310039591,0.45501836,1963.9,1962.4,3.64761061]
[1772310039734,0.45501836,1963.9,1962.3,1.527]
[1772310039735,1.27291242,1964.0,1962.8,3.64761061]
[1772310039935,5.09164969,1964.2,1962.8,3.64761061]
[1772310039936,1.27278281,1964.2,1962.8,3.64761061]
[1772310040142,0.48562103,1964.7,1963.7,3.64761061]
[1772310040453,1.75810942,1964.7,1963.8,1.61]
[1772310040943,5.08741975,1965.7,1964.0,3.64761061]
[1772310041143,5.54243811,1965.7,1964.0,3.64761061]
[1772310041381,0.45501836,1965.4,1963.4,2.59214869]
[1772310041534,0.45501836,1965.1,1963.1,2.59214869]
[1772310041738,0.45501836,1965.1,1963.5,2.59214869]
[1772310041964,0.45501836,1965.1,1963.6,0.826]
[1772310041965,1.27226463,1965.0,1963.6,0.826]
[1772310042164,0.45501836,1964.9,1963.2,2.59214869]
[1772310042463,0.45501836,1964.7,1963.1,0.953]
[1772310042965,0.45501836,1964.5,1963.1,0.953]
[1772310043881,0.45501836,1964.9,1963.2,2.59214869]
[1772310044080,1.27239413,1964.8,1963.3,1.27336627]
[1772310044242,1.76030537,1964.8,1963.2,3.86554277]
[1772310044436,0.48791124,1964.6,1963.1,1.45232375]
[1772310044659,0.48791124,1964.3,1963.1,0.953]
[1772310044860,0.48791124,1964.4,1963.1,0.953]
[1772310045647,3.27830537,1964.8,1963.1,2.67895238]
[1772310046064,1.76030537,1964.8,1963.1,2.67895238]
[1772310046375,1.76030537,1964.8,1963.1,0.953]
[1772310046376,0.47601446,1964.4,1963.1,0.953]
[1772310046865,3.86454282,1964.8,1962.4,0.46258293]
[1772310046866,0.47601446,1964.1,1962.4,0.46258293]
[1772310047073,0.47601446,1963.8,1962.3,1.458]
[1772310047236,0.18685624,1964.0,1962.9,2.59214869]
[1772310047440,0.47601446,1964.7,1962.9,3.05473162]
[1772310047647,0.47601446,1964.7,1963.0,0.46258293]
[1772310047847,0.47601446,1964.7,1963.3,0.46258293]
[1772310048072,1.27252366,1964.6,1963.4,0.826]
[1772310048366,1.74853812,1964.6,1963.4,0.826]
[1772310048744,1.27252366,1964.6,1963.4,0.826]
[1772310049155,1.27252366,1964.6,1963.4,2.09929922]
[1772310049357,0.47601446,1964.5,1963.4,0.826]
[1772310049844,5.08957654,1964.9,1963.4,0.826]
[1772310049845,0.47601446,1966.3,1964.3,0.46258293]
[1772310050060,1.33272231,1965.9,1964.8,2.59214869]
[1772310050244,1.33272231,1965.9,1964.6,1.27252366]
[1772310050440,1.33270961,1965.9,1964.6,4.32725528]
[1772310050867,1.33270961,1965.9,1964.4,6.17109467]
[1772310050868,1.33270961,1965.9,1964.4,1.081]
[1772310051176,1.80872407,1965.9,1964.4,2.35364413]
[1772310051471,0.47601446,1965.8,1964.4,1.081]
[1772310051777,1.33270961,1965.9,1963.9,6.92308704]
[1772310051778,0.47601446,1965.6,1963.9,6.92308704]
[1772310051982,0.47601446,1965.6,1963.9,7.38566997]
[1772310052147,1.27194098,1965.5,1964.3,1.27271801]
[1772310052683,5.08776392,1965.8,1964.3,1.27271801]
[1772310052684,5.56324075,1965.8,1964.3,1.27271801]
[1772310052867,0.47601446,1965.7,1964.2,3.86488554]
[1772310053182,0.47601446,1965.7,1963.7,6.76373692]
[1772310053183,0.47601446,1965.7,1963.7,1.27310689]
[1772310053362,0.47601446,1965.5,1964.3,2.59214869]
[1772310053672,5.08722629,1965.8,1964.3,4.20014869]
[1772310053872,5.08722629,1965.8,1964.4,0.46258293]
[1772310054072,5.08722629,1965.8,1964.5,1.27258844]
[1772310054376,1.33271331,1965.9,1964.8,0.46258293]
[1772310054593,1.33271331,1965.9,1964.7,2.59214869]
[1772310055270,1.80872777,1965.9,1964.3,5.93540528]
[1772310055672,0.47601446,1965.8,1964.3,1.27267366]
[1772310055891,1.80872777,1965.9,1964.6,2.59214869]
[1772310056094,1.27181156,1965.7,1964.4,1.27265322]
[1772310056474,1.27181156,1965.7,1964.3,3.86481837]
[1772310056987,1.74782602,1965.7,1964.3,1.27266968]
[1772310057189,1.27181156,1965.7,1964.4,0.46258293]
[1772310057697,5.08724627,1965.8,1964.3,1.27266968]
[1772310057698,1.33272467,1965.9,1964.9,0.46258293]
[1772310057863,1.33270819,1965.9,1964.9,2.06758293]
[1772310058064,1.33269085,1965.9,1964.9,2.06758293]
[1772310058265,0.061,1965.9,1965.1,0.46258293]
[1772310058484,0.061,1965.9,1965.0,1.27226463]
[1772310058485,1.33268402,1965.9,1965.0,1.27226463]
[1772310058786,1.33271296,1965.9,1965.0,1.27226463]
[1772310058999,1.33268857,1965.9,1965.0,1.73484756]
[1772310059177,0.061,1965.9,1965.1,0.46258293]
[1772310059905,0.061,1965.9,1964.9,1.605]
[1772310059906,1.80870062,1965.9,1964.9,1.605]
[1772310060067,1.80870062,1965.9,1964.4,0.46258293]
[1772310060068,1.33268616,1965.9,1964.4,0.46258293]
[1772310060261,1.33268616,1965.9,1964.5,4.32732006]
[1772310060597,1.80870062,1965.9,1964.5,0.46258293]
[1772310060798,1.33268616,1965.9,1964.5,0.46258293]
[1772310061460,1.33268616,1965.9,1964.6,3.05473162]
[1772310061778,1.33268616,1965.9,1964.7,0.46258293]
[1772310062191,1.33268616,1965.9,1964.5,1.8]
[1772310062510,0.47601446,1965.7,1964.5,3.07258055]
[1772310062680,0.47601446,1965.7,1964.5,1.8]
[1772310062874,0.47601446,1965.7,1964.5,1.27258626]
[1772310063090,0.47601446,1965.7,1964.4,6.69258342]
[1772310063091,0.47601446,1965.7,1964.4,2.87461589]
[1772310063576,0.47601446,1965.7,1964.4,3.33719882]
[1772310063771,1.33268616,1965.9,1964.5,0.46258293]
[1772310063978,1.33270081,1965.9,1964.7,0.46258293]
[1772310064178,1.33270081,1965.9,1964.8,1.73497706]
[1772310064384,1.33271365,1965.9,1964.8,0.46258293]
[1772310064582,1.33271365,1965.9,1964.7,1.27241238]
[1772310064802,0.002,1965.8,1964.7,1.27241238]
[1772310065040,0.47801446,1965.8,1964.4,1.602]
[1772310065188,0.47601446,1965.6,1964.4,1.602]
[1772310065503,0.47601446,1965.6,1963.9,5.09190039]
[1772310065504,0.47601446,1965.4,1963.8,1.601]
[1772310065875,2.59214869,1965.5,1963.8,1.601]
[1772310065876,0.47601446,1965.1,1963.8,1.601]
[1772310066077,0.47601446,1965.6,1963.9,0.46258293]
[1772310066291,0.47601446,1965.4,1964.0,1.27291242]
[1772310066800,1.27190896,1965.6,1964.2,0.46258293]
[1772310066990,7.57056346,1965.7,1964.0,1.27291242]
[1772310066991,1.27185739,1965.7,1964.5,0.46258293]
[1772310067173,1.27185739,1965.7,1964.6,1.6]
[1772310067374,1.27377635,1965.8,1964.7,0.46258293]
[1772310067879,0.002,1965.8,1964.7,0.46258293]
[1772310068208,0.002,1965.8,1964.8,0.46258293]
[1772310068394,0.002,1965.8,1964.9,1.73491231]
[1772310068698,0.002,1965.8,1965.0,0.46258293]
[1772310069514,0.002,1965.8,1964.9,1.27232938]
[1772310069515,0.002,1965.8,1964.7,5.08968737]
[1772310069719,0.002,1965.8,1964.8,0.46258293]
[1772310070097,0.47801446,1965.8,1964.7,1.597]
[1772310070304,0.002,1965.8,1964.8,1.73497706]
[1772310070512,0.002,1965.8,1964.9,0.46258293]
[1772310070727,1.27374798,1965.8,1964.9,0.46258293]
[1772310070900,1.27374798,1965.8,1964.8,1.27239413]
[1772310071098,1.27374798,1965.8,1964.8,1.73497706]
[1772310071602,2.38263585,1966.4,1964.8,1.73497706]
[1772310071603,1.27129417,1966.5,1965.2,0.46258293]
[1772310071841,1.74730863,1966.5,1965.2,0.46258293]
[1772310072331,1.74730863,1966.5,1965.3,1.73465335]
[1772310072539,1.74730863,1966.5,1965.4,1.597]
[1772310073130,1.27129417,1966.5,1965.5,0.46258293]
[1772310073941,4.865923,1967.1,1965.5,0.46258293]
[1772310074155,2.59214869,1966.9,1965.6,0.46258293]
[1772310074307,1.74717935,1966.7,1965.5,1.27194098]
[1772310074610,2.59214869,1965.7,1964.6,1.596]
[1772310074802,3.06816315,1965.7,1964.6,1.596]
[1772310075002,0.47601446,1965.6,1964.6,1.596]
[1772310075502,2.59214869,1965.7,1964.6,1.596]
[1772310075747,3.02191838,1965.6,1964.6,1.596]
[1772310075956,2.95930161,1965.9,1964.6,2.05858293]
[1772310076247,3.06816315,1965.2,1963.8,1.595]
[1772310076402,4.27164732,1965.1,1963.9,1.27297723]
[1772310076710,3.02515839,1965.0,1963.5,4.18714869]
[1772310076910,1.27216752,1965.2,1963.5,4.18714869]
[1772310076911,1.27216752,1965.2,1963.6,0.47797868]
[1772310077114,3.65451212,1965.6,1964.0,0.47797868]
[1772310077410,1.27187627,1965.6,1964.0,0.47797868]
[1772310078004,2.38263585,1966.1,1964.5,2.59214869]
[1772310078204,3.02917666,1966.0,1964.7,0.47797868]
[1772310078404,3.03268194,1965.9,1964.9,0.47797868]
[1772310078634,6.72226149,1966.3,1965.0,1.30197868]
[1772310078807,3.63921833,1966.5,1965.1,0.47797868]
[1772310078808,1.27135138,1966.5,1965.1,0.47797868]
[1772310079004,2.59214869,1965.8,1964.8,1.27239413]
[1772310079224,3.06816638,1966.1,1964.8,1.75037281]
[1772310079432,0.002,1965.8,1964.8,1.75037281]
[1772310080250,3.03825282,1965.8,1964.8,1.75037281]
[1772310080555,3.03625282,1965.7,1964.8,1.75037281]
[1772310080975,3.03625282,1965.7,1964.7,2.867443]
[1772310080976,3.03625282,1965.6,1964.7,2.867443]
[1772310081261,3.03625282,1965.6,1964.7,1.595]
[1772310081434,4.97478454,1965.7,1964.4,1.75058013]
[1772310081435,5.41888867,1965.5,1964.4,1.75058013]
[1772310081752,3.03625282,1965.4,1964.3,2.86969484]
[1772310081941,3.03625282,1965.3,1964.3,2.86969484]
[1772310082146,3.03625282,1965.2,1964.3,2.86969484]
[1772310082457,1.27226463,1965.0,1964.3,2.86969484]
[1772310082634,1.27226463,1965.0,1964.3,1.597]
[1772310082958,1.27226463,1965.0,1964.1,0.001]
[1772310082959,3.03788937,1964.9,1964.1,0.001]
[1772310083164,3.03788937,1964.9,1964.1,1.27384564]
[1772310083333,3.03788937,1964.8,1964.1,0.001]
[1772310083538,1.27226463,1965.0,1964.1,1.2738431]
[1772310083724,3.51253504,1964.9,1964.1,0.001]
[1772310083929,3.03651735,1964.8,1964.1,1.27384448]
[1772310084128,1.27226463,1965.0,1964.1,1.27384448]
[1772310084337,1.27239413,1964.8,1964.1,0.001]
[1772310084739,4.34056051,1964.8,1964.1,0.001]
[1772310084941,1.27233716,1964.9,1964.1,0.001]
[1772310085167,1.27224123,1965.1,1964.1,0.001]
[1772310085351,1.27217584,1965.2,1964.1,0.001]
[1772310085535,3.03387063,1965.1,1964.1,0.001]
[1772310085729,5.0885406,1965.4,1964.1,0.001]
[1772310085730,3.65462636,1965.5,1964.1,0.47897868]
[1772310085935,3.03351526,1965.4,1964.1,0.47897868]
[1772310086471,3.03351526,1965.4,1964.3,0.47797868]
[1772310086629,1.27200653,1965.4,1964.3,0.47797868]
[1772310086937,1.27181156,1965.7,1964.3,0.47797868]
[1772310087142,3.03285518,1965.6,1964.4,2.27797868]
[1772310087363,3.03285518,1965.6,1964.5,1.595]
[1772310087662,0.47601769,1965.4,1964.5,1.595]
[1772310087838,3.03285518,1965.3,1964.5,1.595]
[1772310088457,1.27213515,1965.2,1964.5,2.8675287]
[1772310088666,4.97478454,1965.5,1964.5,2.8675287]
[1772310088667,1.27197669,1965.5,1964.5,2.8675287]
[1772310088882,3.03283778,1965.4,1964.5,2.8675287]
[1772310089173,3.03283778,1965.3,1964.5,2.86757493]
[1772310089373,3.03283778,1965.3,1964.5,1.595]
[1772310089666,3.50885547,1965.3,1964.5,1.595]
[1772310089961,3.06816638,1964.9,1964.1,0.001]
[1772310090173,3.03283778,1964.8,1964.1,1.27384646]
[1772310090375,2.85865354,1965.3,1964.1,1.27384646]
[1772310090681,4.30511641,1965.2,1964.1,1.27384646]
[1772310090832,1.27194914,1965.5,1964.2,0.47797868]
[1772310091038,3.03255447,1965.4,1964.2,0.47797868]
[1772310092044,3.03255447,1965.4,1964.3,2.27797868]
[1772310092247,2.59214869,1965.2,1964.3,1.8]
[1772310092551,0.47601769,1965.3,1964.3,1.8]
[1772310092552,3.03286849,1965.1,1964.4,1.27265322]
[1772310092871,1.27195415,1965.5,1964.4,1.7506319]
[1772310093169,5.08769469,1965.6,1964.4,1.7506319]
[1772310093170,0.002,1965.8,1964.5,0.47797868]
[1772310093370,0.002,1965.6,1964.6,0.47797868]
[1772310093537,0.002,1965.6,1964.8,0.47797868]
[1772310093740,0.002,1965.6,1964.9,1.593]
[1772310094672,0.002,1965.6,1965.0,1.27226463]
[1772310094874,0.002,1965.6,1964.9,1.593]
[1772310095384,3.06816638,1965.5,1964.4,1.592]
[1772310095539,0.47601769,1965.3,1964.4,1.592]
[1772310095738,6.09972872,1965.2,1964.4,1.592]
[1772310096038,3.03156234,1965.1,1964.4,1.592]
[1772310096237,0.47601769,1965.1,1964.1,0.001]
[1772310096464,3.03329466,1965.0,1964.1,1.27384161]
[1772310096667,1.27239413,1964.8,1964.1,0.001]
[1772310096865,5.08879955,1965.2,1964.1,0.001]
[1772310097067,5.62564421,1965.1,1964.2,1.8]
[1772310097270,0.47601769,1964.9,1964.2,1.8]
[1772310097473,5.62564421,1964.8,1964.1,0.001]
[1772310097639,3.03349552,1964.7,1964.1,0.001]
[1772310098044,3.03349552,1964.7,1963.2,2.86338599]
[1772310098045,0.47601769,1964.4,1963.2,2.86338599]
[1772310098345,2.59214869,1964.2,1963.2,2.86338599]
[1772310098557,3.06816638,1964.2,1962.8,5.09466166]
[1772310098767,1.27291242,1964.0,1962.8,5.09466166]
[1772310098947,1.74893011,1964.0,1962.8,5.09466166]
[1772310099147,6.10062624,1963.9,1962.7,2.86271189]
[1772310099344,0.47601769,1963.9,1962.7,2.86271189]
[1772310100068,1.27291242,1964.0,1962.7,3.34069057]
[1772310100469,1.27288228,1964.1,1962.8,0.47797868]
[1772310100636,1.27288228,1964.1,1962.9,1.27362575]
[1772310100841,1.27281948,1964.2,1962.9,1.75160443]
[1772310101269,0.47601769,1964.1,1962.5,0.001]
[1772310101445,3.02476282,1964.0,1962.6,1.27378843]
[1772310101973,0.47601769,1963.9,1962.6,1.27378843]
[1772310102176,0.47601769,1963.6,1962.5,1.2748769]
[1772310102875,0.47601769,1963.3,1962.5,0.001]
[1772310103074,3.02301422,1963.2,1962.5,0.001]
[1772310103243,0.47601769,1963.3,1962.5,0.001]
[1772310103439,0.47601769,1963.3,1962.4,0.001]
[1772310103440,4.1100304,1963.1,1962.4,0.001]
[1772310103653,2.78123656,1963.5,1962.2,0.001]
[1772310103654,3.63401271,1962.7,1962.2,0.001]
[1772310104243,0.4653714,1962.6,1961.2,1.518]
[1772310104767,1.73893227,1963.0,1961.4,0.45307521]
[1772310104949,1.27336627,1963.3,1961.4,0.45307521]
[1772310105555,1.73873767,1963.3,1961.4,0.45307521]
[1772310106543,0.46122283,1963.2,1961.5,1.587]
[1772310106746,0.46122283,1963.2,1961.6,0.46121208]
[1772310106980,0.46122283,1963.2,1961.8,0.46121208]
[1772310106981,1.273496,1963.1,1961.8,0.46121208]
[1772310107194,1.273496,1963.1,1961.9,1.586]
[1772310107902,5.09284185,1963.6,1962.0,0.46121208]
[1772310108112,0.46122283,1963.4,1962.0,0.46121208]
[1772310108864,1.27336627,1963.3,1962.1,1.27414504]
[1772310109159,4.09523554,1963.2,1962.0,1.27417582]
[1772310109363,1.27336627,1963.3,1962.1,0.46121208]
[1772310110272,1.7345891,1963.3,1962.1,0.46121208]
[1772310110883,1.7345891,1963.3,1961.8,5.09783995]
[1772310110884,1.273496,1963.1,1961.8,5.09783995]
[1772310111089,0.46122283,1963.0,1961.8,1.27533989]
[1772310111777,1.273496,1963.1,1961.8,1.27533989]
[1772310111778,1.273496,1963.1,1961.9,0.46121208]
[1772310112970,5.55520683,1963.2,1962.0,1.27420998]
[1772310113165,0.46122283,1963.1,1961.9,1.27423465]
[1772310113501,1.27343113,1963.2,1962.0,0.46121208]
[1772310114013,0.46122283,1963.9,1962.0,0.46121208]
[1772310114166,2.52709219,1963.9,1962.2,0.46121208]
[1772310114485,3.037215,1963.8,1962.2,0.46121208]
[1772310114703,0.46122283,1963.5,1962.2,0.46121208]
[1772310115103,1.27330141,1963.4,1962.3,1.27401518]
[1772310115307,1.27330141,1963.4,1962.4,1.582]
[1772310115617,1.73452424,1963.4,1962.4,1.582]
[1772310115816,0.46122283,1963.3,1962.4,1.582]
[1772310116325,1.96522283,1963.3,1962.4,1.582]
[1772310116538,0.46122283,1963.3,1962.4,1.582]
[1772310117323,1.73465396,1963.2,1962.0,0.46121208]
[1772310117528,0.46122283,1963.1,1961.9,1.58]
[1772310117996,4.90744384,1963.2,1961.9,1.58]
[1772310117997,0.46122283,1962.7,1961.9,1.58]
[1772310118358,0.46122283,1962.7,1961.8,0.001]
[1772310119194,0.46122283,1962.5,1961.8,0.001]
[1772310119384,0.46122283,1962.5,1961.6,0.001]
[1772310120425,7.05593303,1963.3,1961.6,0.46221208]
[1772310120642,1.73465396,1963.2,1961.6,0.46221208]
[1772310121125,5.09295628,1963.5,1961.8,0.46121208]
[1772310121436,1.27323656,1963.5,1962.2,0.46121208]
[1772310121614,1.27304206,1963.8,1962.2,0.46121208]
[1772310121795,0.002,1963.0,1962.2,0.46121208]
[1772310121990,0.002,1963.0,1962.1,2.69546809]
[1772310121991,1.27304206,1963.8,1962.3,0.46121208]
[1772310122423,0.002,1963.1,1962.5,0.46121208]
[1772310123141,0.002,1963.1,1962.6,1.27382044]
[1772310123426,0.002,1963.1,1962.4,1.236]
[1772310123795,3.63401271,1962.8,1961.9,0.001]
[1772310124650,4.09523554,1962.8,1961.9,0.001]
[1772310124801,3.63401271,1962.8,1961.9,0.001]
[1772310125324,5.0942438,1963.0,1962.0,1.576]
[1772310125501,1.27356087,1963.0,1962.0,2.03721208]
[1772310125703,1.27554356,1963.1,1962.0,2.03721208]
[1772310125975,4.90955627,1963.1,1962.0,2.03721208]
[1772310126105,3.03305107,1963.0,1962.0,1.576]
[1772310126432,3.63401271,1962.7,1961.9,0.001]
[1772310126599,3.03305107,1962.6,1961.9,0.001]
[1772310126999,2.4178668,1963.0,1961.9,0.001]
[1772310127243,1.27369064,1962.8,1961.9,0.001]
[1772310127398,3.03774908,1962.7,1961.9,0.001]
[1772310127829,0.46122283,1962.6,1961.6,0.001]
[1772310128007,3.03774908,1962.5,1961.6,0.001]
[1772310128210,3.03774908,1962.4,1961.6,0.001]
[1772310128531,3.03774908,1962.3,1961.6,0.001]
[1772310128700,2.4178668,1962.6,1961.6,0.001]
[1772310128900,3.04029997,1962.5,1961.6,0.001]
[1772310129106,3.04029997,1962.6,1961.6,0.46221208]
[1772310129440,3.04015729,1962.5,1961.7,1.27440485]
[1772310129597,1.27375554,1962.7,1961.7,1.27440485]
[1772310129811,3.04022706,1962.6,1961.7,1.27440485]
[1772310130235,8.73424049,1963.0,1961.7,1.27440485]
[1772310130236,3.69145823,1963.0,1961.8,0.46121208]
[1772310130407,3.0405935,1962.9,1961.8,0.46121208]
[1772310130607,0.002,1963.1,1961.8,0.46121208]
[1772310131230,0.002,1963.1,1962.0,0.46121208]
[1772310131431,0.002,1963.1,1962.1,2.03421208]
[1772310131638,0.002,1963.1,1962.3,0.46121208]
[1772310133336,0.002,1963.1,1962.4,1.27395026]
[1772310133536,0.002,1963.1,1962.4,1.73516234]
[1772310134038,3.63921833,1963.8,1962.4,1.27395026]
[1772310134241,1.27266809,1964.4,1963.2,2.8536228]
[1772310134441,1.27266809,1964.4,1963.2,0.46121208]
[1772310135311,0.0460542,1965.1,1963.4,0.46121208]
[1772310135541,1.31830303,1965.1,1963.6,0.46121208]
[1772310135947,1.31830303,1965.1,1963.8,0.46121208]
[1772310135948,0.0460542,1965.1,1963.8,0.46121208]